[Event "Early-Titled-Tuesday-Blitz-May-07-2024"]
[Site "Chess.com"]
[Date "2024.05.07"]
[Round "7"]
[White "Oleksandr_Bortnyk"]
[Black "nihalsarin"]
[Result "1/2-1/2"]
[WhiteElo "3064"]
[BlackElo "3142"]
[TimeControl "180+1"]
[EndTime "9:22:16 PDT"]
[Termination "Game drawn by repetition"]

1. e4 {[%clk 0:03:00.9]} 1... Nc6 {[%clk 0:02:51.5]} 2. Nf3 {[%clk 0:02:57.4]}
2... e5 {[%clk 0:02:48]} 3. Bb5 {[%clk 0:02:57]} 3... a6 {[%clk 0:02:41.6]} 4.
Ba4 {[%clk 0:02:57.2]} 4... Nf6 {[%clk 0:02:42.3]} 5. Nc3 {[%clk 0:02:57.6]}
5... Bc5 {[%clk 0:02:41.3]} 6. d3 {[%clk 0:02:55.1]} 6... h6 {[%clk 0:02:37.1]}
7. h3 {[%clk 0:02:52.6]} 7... d6 {[%clk 0:02:36.9]} 8. Be3 {[%clk 0:02:50.3]}
8... Bb4 {[%clk 0:02:34.7]} 9. O-O {[%clk 0:02:47]} 9... Bd7 {[%clk 0:02:32.8]}
10. Ne2 {[%clk 0:02:28.2]} 10... O-O {[%clk 0:02:32.3]} 11. c3 {[%clk
0:02:28.1]} 11... Ba5 {[%clk 0:02:32.1]} 12. b4 {[%clk 0:02:19.8]} 12... Bb6
{[%clk 0:02:32.3]} 13. Bxb6 {[%clk 0:02:19.8]} 13... cxb6 {[%clk 0:02:33.2]} 14.
Bb3 {[%clk 0:02:16.8]} 14... Re8 {[%clk 0:02:29.7]} 15. Ng3 {[%clk 0:02:09.2]}
15... Be6 {[%clk 0:02:29.5]} 16. Bxe6 {[%clk 0:02:05.5]} 16... Rxe6 {[%clk
0:02:30.4]} 17. Qb3 {[%clk 0:02:00.8]} 17... d5 {[%clk 0:02:30.5]} 18. Rfe1
{[%clk 0:01:47.2]} 18... Qd7 {[%clk 0:02:29.1]} 19. a4 {[%clk 0:01:45.1]} 19...
Rc8 {[%clk 0:02:21.5]} 20. Nf5 {[%clk 0:01:38]} 20... g6 {[%clk 0:01:58.2]} 21.
Nxh6+ {[%clk 0:01:33.9]} 21... Kg7 {[%clk 0:01:58.5]} 22. Ng4 {[%clk 0:01:34.8]}
22... dxe4 {[%clk 0:01:58.8]} 23. dxe4 {[%clk 0:01:25.3]} 23... Nxg4 {[%clk
0:01:59]} 24. hxg4 {[%clk 0:01:26.2]} 24... Rf6 {[%clk 0:01:59.7]} 25. Nh2
{[%clk 0:01:17.8]} 25... Qd2 {[%clk 0:01:49.2]} 26. Nf3 {[%clk 0:00:51.6]} 26...
Qd7 {[%clk 0:01:30.2]} 27. Nh2 {[%clk 0:00:51.8]} 27... Rd6 {[%clk 0:01:04.7]}
28. Rad1 {[%clk 0:00:45.9]} 28... Rd3 {[%clk 0:01:04.9]} 29. Nf3 {[%clk
0:00:38.6]} 29... Rd8 {[%clk 0:01:00.4]} 30. Rxd3 {[%clk 0:00:37.1]} 30... Qxd3
{[%clk 0:01:01.3]} 31. Re3 {[%clk 0:00:32.9]} 31... Qd1+ {[%clk 0:00:49.8]} 32.
Qxd1 {[%clk 0:00:28.7]} 32... Rxd1+ {[%clk 0:00:50.7]} 33. Re1 {[%clk
0:00:27.7]} 33... Rd3 {[%clk 0:00:46.2]} 34. Rc1 {[%clk 0:00:27.6]} 34... Kf6
{[%clk 0:00:39.2]} 35. Kf1 {[%clk 0:00:26.7]} 35... a5 {[%clk 0:00:36.5]} 36.
g5+ {[%clk 0:00:25]} 36... Ke6 {[%clk 0:00:32.7]} 37. Ke2 {[%clk 0:00:25.9]}
37... Rd8 {[%clk 0:00:30.3]} 38. Rb1 {[%clk 0:00:21.1]} 38... axb4 {[%clk
0:00:27.2]} 39. cxb4 {[%clk 0:00:22]} 39... Ra8 {[%clk 0:00:27.7]} 40. a5 {[%clk
0:00:20.8]} 40... bxa5 {[%clk 0:00:14.1]} 41. bxa5 {[%clk 0:00:21.7]} 41... Nxa5
{[%clk 0:00:15]} 42. Rb6+ {[%clk 0:00:17.1]} 42... Nc6 {[%clk 0:00:13.3]} 43.
Rxb7 {[%clk 0:00:17.4]} 43... Ra2+ {[%clk 0:00:13.7]} 44. Ke3 {[%clk 0:00:16.1]}
44... Ra3+ {[%clk 0:00:14]} 45. Ke2 {[%clk 0:00:16.6]} 45... Ra2+ {[%clk
0:00:14.7]} 46. Ke3 {[%clk 0:00:09.1]} 46... Ra3+ {[%clk 0:00:15]} 47. Kd2
{[%clk 0:00:09.2]} 47... Ra2+ {[%clk 0:00:15.5]} 48. Ke1 {[%clk 0:00:06.6]}
48... Ra1+ {[%clk 0:00:15.7]} 49. Ke2 {[%clk 0:00:07.2]} 49... Ra2+ {[%clk
0:00:16.2]} 1/2-1/2

[Event "Early-Titled-Tuesday-Blitz-May-07-2024"]
[Site "Chess.com"]
[Date "2024.05.07"]
[Round "7"]
[White "Semetey"]
[Black "super_emi_26"]
[Result "0-1"]
[WhiteElo "2594"]
[BlackElo "2870"]
[TimeControl "180+1"]
[EndTime "9:22:16 PDT"]
[Termination "super_emi_26 won on time"]

1. Nc3 {[%clk 0:02:53.5]} 1... d5 {[%clk 0:02:59.7]} 2. d4 {[%clk 0:02:53.4]}
2... Nf6 {[%clk 0:02:59.9]} 3. Bf4 {[%clk 0:02:53.3]} 3... a6 {[%clk 0:02:47.8]}
4. e3 {[%clk 0:02:52]} 4... b5 {[%clk 0:02:47.9]} 5. Bd3 {[%clk 0:02:47.5]} 5...
Bb7 {[%clk 0:02:46]} 6. h3 {[%clk 0:02:44.4]} 6... e6 {[%clk 0:02:46]} 7. Nf3
{[%clk 0:02:41.6]} 7... c5 {[%clk 0:02:46.5]} 8. Ne5 {[%clk 0:02:40.4]} 8... Nc6
{[%clk 0:02:45.2]} 9. a3 {[%clk 0:02:27]} 9... Rc8 {[%clk 0:02:43.4]} 10. O-O
{[%clk 0:02:25]} 10... Be7 {[%clk 0:02:40.7]} 11. Nxc6 {[%clk 0:02:21.5]} 11...
Bxc6 {[%clk 0:02:41.6]} 12. dxc5 {[%clk 0:02:21]} 12... Bxc5 {[%clk 0:02:42.5]}
13. Qe2 {[%clk 0:02:20.8]} 13... Qe7 {[%clk 0:02:39.7]} 14. e4 {[%clk
0:02:20.4]} 14... d4 {[%clk 0:02:35.4]} 15. Nb1 {[%clk 0:02:18.7]} 15... e5
{[%clk 0:02:28.2]} 16. Bc1 {[%clk 0:02:04.1]} 16... O-O {[%clk 0:02:26.8]} 17.
Nd2 {[%clk 0:01:58.3]} 17... Rfe8 {[%clk 0:02:24.1]} 18. Nf3 {[%clk 0:01:56.4]}
18... Qb7 {[%clk 0:02:23.4]} 19. Re1 {[%clk 0:01:54.2]} 19... Nd7 {[%clk
0:02:20.9]} 20. Nh4 {[%clk 0:01:53.1]} 20... Nf8 {[%clk 0:02:20.3]} 21. Nf5
{[%clk 0:01:52.5]} 21... g6 {[%clk 0:02:11.4]} 22. Qg4 {[%clk 0:01:42.8]} 22...
Bd7 {[%clk 0:02:08.6]} 23. Nh6+ {[%clk 0:01:41.7]} 23... Kg7 {[%clk 0:02:06.2]}
24. Qg3 {[%clk 0:01:39.5]} 24... f6 {[%clk 0:02:01.7]} 25. Ng4 {[%clk
0:01:08.6]} 25... Bxg4 {[%clk 0:01:53.6]} 26. Qxg4 {[%clk 0:01:06.6]} 26... Qd7
{[%clk 0:01:53.7]} 27. Qg3 {[%clk 0:01:00.9]} 27... Ne6 {[%clk 0:01:53.1]} 28.
Bd2 {[%clk 0:00:59.1]} 28... h5 {[%clk 0:01:50.4]} 29. b3 {[%clk 0:00:57.1]}
29... Bd6 {[%clk 0:01:50.7]} 30. a4 {[%clk 0:00:56.1]} 30... b4 {[%clk
0:01:45.8]} 31. Bxa6 {[%clk 0:00:49.8]} 31... Rxc2 {[%clk 0:01:44.5]} 32. Bb5
{[%clk 0:00:50]} 32... Qe7 {[%clk 0:01:40.1]} 33. Bxe8 {[%clk 0:00:49.9]} 33...
Qxe8 {[%clk 0:01:41]} 34. Qd3 {[%clk 0:00:49.7]} 34... Rc8 {[%clk 0:01:22.9]}
35. Rec1 {[%clk 0:00:47.3]} 35... Nc5 {[%clk 0:01:23.1]} 36. Qc4 {[%clk
0:00:40.6]} 36... Rc7 {[%clk 0:01:21.5]} 37. Qd5 {[%clk 0:00:40.6]} 37... Bf8
{[%clk 0:01:17.2]} 38. f3 {[%clk 0:00:39.4]} 38... Rd7 {[%clk 0:01:05.7]} 39.
Qc4 {[%clk 0:00:38.6]} 39... Ne6 {[%clk 0:01:04.6]} 40. Bxb4 {[%clk 0:00:38.2]}
40... Bxb4 {[%clk 0:01:04.2]} 41. Qxb4 {[%clk 0:00:39.1]} 41... Nf4 {[%clk
0:01:04.2]} 42. Qd2 {[%clk 0:00:34.6]} 42... d3 {[%clk 0:01:04.4]} 43. a5 {[%clk
0:00:33.9]} 43... Ne2+ {[%clk 0:01:03.5]} 44. Kh2 {[%clk 0:00:33.3]} 44... Nxc1
{[%clk 0:01:00.3]} 45. Rxc1 {[%clk 0:00:34.2]} 45... Qb8 {[%clk 0:01:00.6]} 46.
b4 {[%clk 0:00:34]} 46... Rd4 {[%clk 0:00:55.6]} 47. Rb1 {[%clk 0:00:24]} 47...
Qb5 {[%clk 0:00:54.4]} 48. Rb3 {[%clk 0:00:23.9]} 48... Rd6 {[%clk 0:00:53.4]}
49. Rc3 {[%clk 0:00:22.5]} 49... Rd7 {[%clk 0:00:52.6]} 50. Rc5 {[%clk
0:00:22.2]} 50... Qa4 {[%clk 0:00:49.1]} 51. b5 {[%clk 0:00:22.7]} 51... Qd4
{[%clk 0:00:48.1]} 52. Rc3 {[%clk 0:00:19.7]} 52... Qxc3 {[%clk 0:00:48.1]} 53.
Qxc3 {[%clk 0:00:19.6]} 53... d2 {[%clk 0:00:49]} 54. Qxd2 {[%clk 0:00:17.8]}
54... Rxd2 {[%clk 0:00:49.8]} 55. b6 {[%clk 0:00:16.6]} 55... Rb2 {[%clk
0:00:50.2]} 56. Kg1 {[%clk 0:00:14.2]} 56... Rb5 {[%clk 0:00:49.6]} 57. Kf1
{[%clk 0:00:15.1]} 57... Rxa5 {[%clk 0:00:50]} 0-1

[Event "Early-Titled-Tuesday-Blitz-May-07-2024"]
[Site "Chess.com"]
[Date "2024.05.07"]
[Round "7"]
[White "Firouzja2003"]
[Black "baki83"]
[Result "1-0"]
[WhiteElo "3201"]
[BlackElo "2917"]
[TimeControl "180+1"]
[EndTime "9:22:17 PDT"]
[Termination "Firouzja2003 won by resignation"]

1. e4 {[%clk 0:03:00.9]} 1... c5 {[%clk 0:03:00.1]} 2. Nf3 {[%clk 0:03:01.2]}
2... d6 {[%clk 0:03:00.5]} 3. Nc3 {[%clk 0:03:00.6]} 3... Nf6 {[%clk 0:03:00.1]}
4. d4 {[%clk 0:03:00.9]} 4... cxd4 {[%clk 0:03:00.5]} 5. Qxd4 {[%clk 0:03:01.6]}
5... Nc6 {[%clk 0:03:00.6]} 6. Qe3 {[%clk 0:03:02.2]} 6... g6 {[%clk 0:03:00.1]}
7. Bc4 {[%clk 0:03:02.6]} 7... Bg7 {[%clk 0:03:00.5]} 8. h3 {[%clk 0:03:03]}
8... O-O {[%clk 0:03:00.6]} 9. O-O {[%clk 0:03:03.4]} 9... Bd7 {[%clk
0:03:00.2]} 10. Rd1 {[%clk 0:03:03.5]} 10... Rc8 {[%clk 0:02:59.8]} 11. Bb3
{[%clk 0:03:02.7]} 11... a6 {[%clk 0:02:55.4]} 12. Qf4 {[%clk 0:02:59.5]} 12...
Na5 {[%clk 0:02:49.3]} 13. Qh4 {[%clk 0:02:55.9]} 13... Nxb3 {[%clk 0:02:43.1]}
14. axb3 {[%clk 0:02:55.9]} 14... Rc5 {[%clk 0:02:32.4]} 15. Be3 {[%clk
0:02:41]} 15... Rh5 {[%clk 0:02:19.9]} 16. Qg3 {[%clk 0:02:35.4]} 16... Qc8
{[%clk 0:02:06.4]} 17. Nd2 {[%clk 0:02:17]} 17... Be6 {[%clk 0:01:54.8]} 18. f3
{[%clk 0:01:41.2]} 18... d5 {[%clk 0:01:34.5]} 19. e5 {[%clk 0:01:37.7]} 19...
Nd7 {[%clk 0:01:30.1]} 20. f4 {[%clk 0:01:38]} 20... f6 {[%clk 0:00:57.5]} 21.
exf6 {[%clk 0:01:37.1]} 21... Nxf6 {[%clk 0:00:53.2]} 22. Nf3 {[%clk 0:01:37.1]}
22... Bf5 {[%clk 0:00:40.6]} 23. Rd2 {[%clk 0:01:25.8]} 23... Ne4 {[%clk
0:00:40.7]} 24. Nxe4 {[%clk 0:01:24.8]} 24... Bxe4 {[%clk 0:00:41.1]} 25. c3
{[%clk 0:01:10.6]} 25... Qf5 {[%clk 0:00:29.1]} 26. Nd4 {[%clk 0:00:41.6]} 26...
Qf7 {[%clk 0:00:25.6]} 27. Rf2 {[%clk 0:00:38.7]} 27... Bf6 {[%clk 0:00:24.9]}
28. Qg4 {[%clk 0:00:37.6]} 28... Bh4 {[%clk 0:00:24.6]} 29. Rff1 {[%clk
0:00:35.7]} 29... Bf6 {[%clk 0:00:23.1]} 30. b4 {[%clk 0:00:33.2]} 30... h6
{[%clk 0:00:16.4]} 31. Rad1 {[%clk 0:00:32.2]} 31... Kh7 {[%clk 0:00:16.7]} 32.
Rd2 {[%clk 0:00:23.3]} 32... Rg8 {[%clk 0:00:16.6]} 33. Qe6 {[%clk 0:00:19.8]}
33... Qe8 {[%clk 0:00:14.4]} 34. Qg4 {[%clk 0:00:13.9]} 34... Qf7 {[%clk
0:00:14]} 35. Nb3 {[%clk 0:00:13.7]} 35... Rf5 {[%clk 0:00:12.8]} 36. Nc5 {[%clk
0:00:13.8]} 36... e5 {[%clk 0:00:11.5]} 37. Rdf2 {[%clk 0:00:13.2]} 37... h5
{[%clk 0:00:11.2]} 38. Qg3 {[%clk 0:00:12.8]} 38... Rf8 {[%clk 0:00:07.5]} 39.
fxe5 {[%clk 0:00:09.7]} 39... h4 {[%clk 0:00:04.7]} 40. Qg4 {[%clk 0:00:07.1]}
40... Bxe5 {[%clk 0:00:04.1]} 41. Nxe4 {[%clk 0:00:06.9]} 41... dxe4 {[%clk
0:00:04]} 42. Qxh4+ {[%clk 0:00:07.6]} 42... Kg7 {[%clk 0:00:03.9]} 43. Bh6+
{[%clk 0:00:06.2]} 43... Kg8 {[%clk 0:00:04.1]} 44. Rxf5 {[%clk 0:00:05.8]}
44... gxf5 {[%clk 0:00:04.1]} 45. Bxf8 {[%clk 0:00:06.5]} 45... Qg6 {[%clk
0:00:04.7]} 46. Bc5 {[%clk 0:00:05.2]} 1-0

[Event "Early-Titled-Tuesday-Blitz-May-07-2024"]
[Site "Chess.com"]
[Date "2024.05.07"]
[Round "7"]
[White "vladgoncharov"]
[Black "thesupera12"]
[Result "0-1"]
[WhiteElo "2578"]
[BlackElo "2471"]
[TimeControl "180+1"]
[EndTime "9:22:17 PDT"]
[Termination "thesupera12 won on time"]

1. d4 {[%clk 0:03:00.9]} 1... Na6 {[%clk 0:02:49.1]} 2. e4 {[%clk 0:03:00.1]}
2... c5 {[%clk 0:02:48.4]} 3. Nf3 {[%clk 0:02:59.4]} 3... cxd4 {[%clk 0:02:48]}
4. Nxd4 {[%clk 0:02:59.2]} 4... Nc5 {[%clk 0:02:48.5]} 5. Nc3 {[%clk 0:02:53.9]}
5... g6 {[%clk 0:02:47.9]} 6. Be3 {[%clk 0:02:49]} 6... d6 {[%clk 0:02:44.1]} 7.
Bc4 {[%clk 0:02:39.9]} 7... Bg7 {[%clk 0:02:41]} 8. O-O {[%clk 0:02:23.1]} 8...
Nf6 {[%clk 0:02:38.7]} 9. e5 {[%clk 0:02:11.8]} 9... dxe5 {[%clk 0:02:37.9]} 10.
Bb5+ {[%clk 0:02:04.3]} 10... Ncd7 {[%clk 0:02:24.9]} 11. Nf3 {[%clk 0:01:51.3]}
11... O-O {[%clk 0:02:24.2]} 12. Qe2 {[%clk 0:01:50.1]} 12... a6 {[%clk
0:02:21.9]} 13. Ba4 {[%clk 0:01:47.5]} 13... b5 {[%clk 0:02:21.6]} 14. Bb3
{[%clk 0:01:47.6]} 14... Bb7 {[%clk 0:02:21.3]} 15. Rfd1 {[%clk 0:01:47.3]}
15... Qc7 {[%clk 0:02:20.3]} 16. Ng5 {[%clk 0:01:45.9]} 16... Nc5 {[%clk
0:02:09.8]} 17. Bd5 {[%clk 0:01:27.3]} 17... Nxd5 {[%clk 0:01:36.1]} 18. Nxd5
{[%clk 0:01:26.7]} 18... Bxd5 {[%clk 0:01:36.3]} 19. Rxd5 {[%clk 0:01:26.1]}
19... Na4 {[%clk 0:01:35.8]} 20. c3 {[%clk 0:01:14.2]} 20... Rfd8 {[%clk
0:01:30.3]} 21. Qf3 {[%clk 0:01:02.7]} 21... e6 {[%clk 0:01:22.6]} 22. Rd2
{[%clk 0:00:55.5]} 22... Rxd2 {[%clk 0:01:18.6]} 23. Qxa8+ {[%clk 0:00:39.6]}
23... Qd8 {[%clk 0:01:14.7]} 24. Qxd8+ {[%clk 0:00:36.6]} 24... Rxd8 {[%clk
0:01:14.6]} 25. Rb1 {[%clk 0:00:36.2]} 25... Nxb2 {[%clk 0:01:03.4]} 26. h4
{[%clk 0:00:31.5]} 26... Nc4 {[%clk 0:00:53.2]} 27. Ne4 {[%clk 0:00:27.2]} 27...
Nxe3 {[%clk 0:00:52.4]} 28. fxe3 {[%clk 0:00:27.2]} 28... f5 {[%clk 0:00:51.6]}
29. Nc5 {[%clk 0:00:27]} 29... Rd2 {[%clk 0:00:50.7]} 30. a4 {[%clk 0:00:25.2]}
30... Bh6 {[%clk 0:00:48]} 31. Nxe6 {[%clk 0:00:23.7]} 31... Bxe3+ {[%clk
0:00:47.4]} 32. Kf1 {[%clk 0:00:20.2]} 32... Rf2+ {[%clk 0:00:46.2]} 33. Ke1
{[%clk 0:00:20.2]} 33... Rxg2 {[%clk 0:00:46.9]} 34. Rb4 {[%clk 0:00:19.6]}
34... Rg4 {[%clk 0:00:41.9]} 35. axb5 {[%clk 0:00:12.9]} 35... Rxb4 {[%clk
0:00:40]} 36. cxb4 {[%clk 0:00:13]} 36... axb5 {[%clk 0:00:40.7]} 37. Nc7 {[%clk
0:00:13]} 37... Bd4 {[%clk 0:00:38.7]} 38. Nxb5 {[%clk 0:00:12.2]} 38... Kf7
{[%clk 0:00:36.6]} 39. Ke2 {[%clk 0:00:09]} 39... Ke6 {[%clk 0:00:36.6]} 40. Kd3
{[%clk 0:00:08.4]} 40... Kd5 {[%clk 0:00:36.2]} 41. Nc7+ {[%clk 0:00:08.5]}
41... Kc6 {[%clk 0:00:35.2]} 42. Ne6 {[%clk 0:00:08.7]} 42... Bf2 {[%clk
0:00:30.8]} 43. h5 {[%clk 0:00:04.2]} 43... gxh5 {[%clk 0:00:30.7]} 44. Ng7
{[%clk 0:00:04.4]} 44... e4+ {[%clk 0:00:29.5]} 45. Ke2 {[%clk 0:00:03.8]} 45...
Bg3 {[%clk 0:00:26.7]} 46. Nxf5 {[%clk 0:00:03.9]} 46... h4 {[%clk 0:00:24.9]}
47. Kf1 {[%clk 0:00:02.6]} 47... Kd5 {[%clk 0:00:19.9]} 0-1

[Event "Early-Titled-Tuesday-Blitz-May-07-2024"]
[Site "Chess.com"]
[Date "2024.05.07"]
[Round "7"]
[White "ChessQueen"]
[Black "arenal72"]
[Result "1/2-1/2"]
[WhiteElo "2804"]
[BlackElo "2624"]
[TimeControl "180+1"]
[EndTime "9:22:18 PDT"]
[Termination "Game drawn by repetition"]

1. e4 {[%clk 0:03:00.9]} 1... e6 {[%clk 0:02:57.7]} 2. d4 {[%clk 0:03:00.5]}
2... d5 {[%clk 0:02:57.9]} 3. exd5 {[%clk 0:02:59.9]} 3... exd5 {[%clk
0:02:58.8]} 4. Nf3 {[%clk 0:03:00.4]} 4... Bd6 {[%clk 0:02:58.3]} 5. Bd3 {[%clk
0:02:59.6]} 5... Nc6 {[%clk 0:02:56.2]} 6. O-O {[%clk 0:02:56.7]} 6... Nge7
{[%clk 0:02:56.2]} 7. c4 {[%clk 0:02:56.9]} 7... dxc4 {[%clk 0:02:47.7]} 8. Bxc4
{[%clk 0:02:57]} 8... O-O {[%clk 0:02:46.9]} 9. Nc3 {[%clk 0:02:56.9]} 9... h6
{[%clk 0:02:46.3]} 10. Re1 {[%clk 0:02:54.4]} 10... Bg4 {[%clk 0:02:45.7]} 11.
d5 {[%clk 0:02:45.7]} 11... Bxf3 {[%clk 0:02:34.9]} 12. gxf3 {[%clk 0:02:42.1]}
12... Ne5 {[%clk 0:02:26.8]} 13. Bf1 {[%clk 0:02:42]} 13... N5g6 {[%clk
0:02:20.4]} 14. Qd3 {[%clk 0:02:18.5]} 14... c6 {[%clk 0:02:12.7]} 15. Rd1
{[%clk 0:02:09.3]} 15... cxd5 {[%clk 0:02:06.9]} 16. Nxd5 {[%clk 0:02:10.2]}
16... Nxd5 {[%clk 0:02:04.7]} 17. Qxd5 {[%clk 0:02:11.1]} 17... Be5 {[%clk
0:01:57.1]} 18. Qxd8 {[%clk 0:02:03]} 18... Rfxd8 {[%clk 0:01:54.9]} 19. Be3
{[%clk 0:01:57.6]} 19... b6 {[%clk 0:01:39.8]} 20. Rdb1 {[%clk 0:01:47.3]} 20...
Rac8 {[%clk 0:01:33.3]} 21. a4 {[%clk 0:01:43.9]} 21... Rc2 {[%clk 0:01:25.6]}
22. a5 {[%clk 0:01:44.1]} 22... Rxb2 {[%clk 0:01:22.5]} 23. Rxb2 {[%clk
0:01:42.7]} 23... Bxb2 {[%clk 0:01:23.4]} 24. Rb1 {[%clk 0:01:42.8]} 24... Bd4
{[%clk 0:01:18]} 25. axb6 {[%clk 0:01:42]} 25... Bxb6 {[%clk 0:01:12.1]} 26. Ra1
{[%clk 0:01:25.6]} 26... Ne5 {[%clk 0:01:01.6]} 27. f4 {[%clk 0:01:19.4]} 27...
Ng4 {[%clk 0:00:53.6]} 28. Bxb6 {[%clk 0:01:16.4]} 28... axb6 {[%clk 0:00:54.5]}
29. h3 {[%clk 0:01:02.1]} 29... Nf6 {[%clk 0:00:50.8]} 30. Rb1 {[%clk
0:01:02.1]} 30... Rd4 {[%clk 0:00:47.7]} 31. Rxb6 {[%clk 0:01:00.3]} 31... Rxf4
{[%clk 0:00:42.5]} 32. Bd3 {[%clk 0:01:00.5]} 32... g6 {[%clk 0:00:39.6]} 33.
Kg2 {[%clk 0:00:59.4]} 33... Kg7 {[%clk 0:00:37.4]} 34. Rb7 {[%clk 0:00:59.3]}
34... Rd4 {[%clk 0:00:36]} 35. Bc2 {[%clk 0:00:57.3]} 35... Rd7 {[%clk
0:00:35.6]} 36. Rb4 {[%clk 0:00:54.4]} 36... h5 {[%clk 0:00:29.8]} 37. Bb3
{[%clk 0:00:53.6]} 37... Re7 {[%clk 0:00:27.1]} 38. Rb6 {[%clk 0:00:49.8]} 38...
Nd7 {[%clk 0:00:23.9]} 39. Rb7 {[%clk 0:00:48.2]} 39... Kf6 {[%clk 0:00:23.2]}
40. Bc4 {[%clk 0:00:46.8]} 40... Ne5 {[%clk 0:00:22.8]} 41. Rb6+ {[%clk
0:00:47]} 41... Kg5 {[%clk 0:00:20.9]} 42. Bb3 {[%clk 0:00:45.1]} 42... f5
{[%clk 0:00:18.9]} 43. Rb4 {[%clk 0:00:43.1]} 43... f4 {[%clk 0:00:16.6]} 44.
h4+ {[%clk 0:00:42.2]} 44... Kxh4 {[%clk 0:00:14.1]} 45. Rxf4+ {[%clk
0:00:42.2]} 45... Kg5 {[%clk 0:00:14.7]} 46. Re4 {[%clk 0:00:42.4]} 46... Kf6
{[%clk 0:00:14.9]} 47. Rf4+ {[%clk 0:00:42.8]} 47... Kg7 {[%clk 0:00:14.8]} 48.
Re4 {[%clk 0:00:42.2]} 48... Nc6 {[%clk 0:00:14.9]} 49. Ra4 {[%clk 0:00:40.9]}
49... Ne5 {[%clk 0:00:11.4]} 50. Bc2 {[%clk 0:00:39.8]} 50... Re6 {[%clk
0:00:09.2]} 51. Ra7+ {[%clk 0:00:38.2]} 51... Kf6 {[%clk 0:00:09.3]} 52. Ra8
{[%clk 0:00:37.6]} 52... Ng4 {[%clk 0:00:09.2]} 53. Bd1 {[%clk 0:00:36.4]} 53...
Kg5 {[%clk 0:00:07.1]} 54. Ra5+ {[%clk 0:00:35.3]} 54... Re5 {[%clk 0:00:06]}
55. Ra6 {[%clk 0:00:35.7]} 55... Rf5 {[%clk 0:00:06.2]} 56. Bxg4 {[%clk
0:00:33.4]} 56... hxg4 {[%clk 0:00:07.1]} 57. Ra4 {[%clk 0:00:32.8]} 57... Rf4
{[%clk 0:00:07]} 58. Ra5+ {[%clk 0:00:33]} 58... Rf5 {[%clk 0:00:07.2]} 59. Ra4
{[%clk 0:00:33.4]} 59... Rf4 {[%clk 0:00:07.7]} 60. Ra5+ {[%clk 0:00:33.9]}
60... Rf5 {[%clk 0:00:08.2]} 61. Ra4 {[%clk 0:00:34.3]} 1/2-1/2

[Event "Early-Titled-Tuesday-Blitz-May-07-2024"]
[Site "Chess.com"]
[Date "2024.05.07"]
[Round "7"]
[White "rachidhuilda"]
[Black "Alenzer"]
[Result "1-0"]
[WhiteElo "2349"]
[BlackElo "2218"]
[TimeControl "180+1"]
[EndTime "9:22:22 PDT"]
[Termination "rachidhuilda won by resignation"]

1. d4 {[%clk 0:03:00.9]} 1... d5 {[%clk 0:02:59.2]} 2. Nf3 {[%clk 0:03:00.3]}
2... Nf6 {[%clk 0:02:59.3]} 3. c4 {[%clk 0:03:00.7]} 3... e6 {[%clk 0:02:59.3]}
4. g3 {[%clk 0:03:00.5]} 4... dxc4 {[%clk 0:02:58.7]} 5. Bg2 {[%clk 0:03:00.6]}
5... c6 {[%clk 0:02:53.7]} 6. Ne5 {[%clk 0:02:59]} 6... Nbd7 {[%clk 0:02:49.9]}
7. Nxc4 {[%clk 0:02:58.1]} 7... Be7 {[%clk 0:02:50.4]} 8. O-O {[%clk 0:02:58]}
8... O-O {[%clk 0:02:50.3]} 9. Nc3 {[%clk 0:02:58.5]} 9... Nb6 {[%clk
0:02:50.6]} 10. b3 {[%clk 0:02:56.5]} 10... Nbd5 {[%clk 0:02:42.6]} 11. Bb2
{[%clk 0:02:53.2]} 11... Nxc3 {[%clk 0:02:42.5]} 12. Bxc3 {[%clk 0:02:52.9]}
12... Nd5 {[%clk 0:02:43.2]} 13. Bb2 {[%clk 0:02:53.2]} 13... f5 {[%clk
0:02:35.8]} 14. e4 {[%clk 0:02:39.6]} 14... fxe4 {[%clk 0:02:35.4]} 15. Bxe4
{[%clk 0:02:39.5]} 15... Nf6 {[%clk 0:02:28.6]} 16. Bg2 {[%clk 0:02:36.6]} 16...
a5 {[%clk 0:02:24.7]} 17. a4 {[%clk 0:02:33.3]} 17... Nd5 {[%clk 0:02:19.8]} 18.
Qe2 {[%clk 0:02:27.9]} 18... Bf6 {[%clk 0:02:16.9]} 19. Bh3 {[%clk 0:02:05.1]}
19... Re8 {[%clk 0:02:11.7]} 20. Ne5 {[%clk 0:02:03.5]} 20... Qd6 {[%clk
0:01:57.7]} 21. Qc4 {[%clk 0:01:47]} 21... Bxe5 {[%clk 0:01:38.4]} 22. dxe5
{[%clk 0:01:46.3]} 22... Qb4 {[%clk 0:01:36.6]} 23. Rfd1 {[%clk 0:01:25.9]}
23... Qe7 {[%clk 0:01:17.1]} 24. Rd4 {[%clk 0:01:10.5]} 24... Bd7 {[%clk
0:01:08.9]} 25. Rad1 {[%clk 0:01:05.9]} 25... b5 {[%clk 0:01:07.1]} 26. Qe2
{[%clk 0:00:56.5]} 26... b4 {[%clk 0:01:02.9]} 27. Rc1 {[%clk 0:00:50.7]} 27...
c5 {[%clk 0:00:57.9]} 28. Rd2 {[%clk 0:00:45.9]} 28... Rf8 {[%clk 0:00:43.1]}
29. Bg2 {[%clk 0:00:43.4]} 29... Bc6 {[%clk 0:00:37]} 30. Qc4 {[%clk 0:00:43.5]}
30... Rac8 {[%clk 0:00:19.6]} 31. Qxc5 {[%clk 0:00:36.7]} 31... Qg5 {[%clk
0:00:19.1]} 32. Qd4 {[%clk 0:00:36.4]} 32... Rfd8 {[%clk 0:00:15.2]} 33. f4
{[%clk 0:00:34.8]} 33... Qg4 {[%clk 0:00:12.9]} 34. Qf2 {[%clk 0:00:35.4]} 34...
Qf5 {[%clk 0:00:12.8]} 35. Rcd1 {[%clk 0:00:34.2]} 35... Qf8 {[%clk 0:00:11.1]}
36. Bh3 {[%clk 0:00:33.3]} 36... Bd7 {[%clk 0:00:10.2]} 37. f5 {[%clk
0:00:33.1]} 37... Nc7 {[%clk 0:00:07.2]} 38. f6 {[%clk 0:00:32.3]} 38... gxf6
{[%clk 0:00:06.9]} 39. exf6 {[%clk 0:00:33.2]} 39... Qf7 {[%clk 0:00:06.1]} 40.
Rd4 {[%clk 0:00:32.1]} 40... Nd5 {[%clk 0:00:06]} 41. Rg4+ {[%clk 0:00:32.1]}
41... Kh8 {[%clk 0:00:06.3]} 42. Rg7 {[%clk 0:00:32.6]} 42... Qf8 {[%clk
0:00:05]} 43. f7 {[%clk 0:00:31.9]} 43... Qxg7 {[%clk 0:00:04.9]} 44. Bxg7+
{[%clk 0:00:32.4]} 44... Kxg7 {[%clk 0:00:05.8]} 45. Qd4+ {[%clk 0:00:31.4]}
45... Nf6 {[%clk 0:00:05.5]} 46. Rf1 {[%clk 0:00:29.8]} 46... e5 {[%clk
0:00:05.9]} 47. Qxe5 {[%clk 0:00:29.1]} 47... Bxh3 {[%clk 0:00:06.2]} 48. Qxf6+
{[%clk 0:00:29.6]} 48... Kf8 {[%clk 0:00:06.8]} 49. Qh6+ {[%clk 0:00:28.2]}
49... Ke7 {[%clk 0:00:06.6]} 50. Qxh3 {[%clk 0:00:29.1]} 50... Re8 {[%clk
0:00:06.8]} 51. Qh4+ {[%clk 0:00:29]} 51... Kf8 {[%clk 0:00:06.5]} 52. fxe8=Q+
{[%clk 0:00:29.5]} 52... Kxe8 {[%clk 0:00:06.9]} 53. Qxh7 {[%clk 0:00:28.8]} 1-0